bitfinex/quotes_ETHUSD_20241104
["timestamp","ask_amount","ask_price","bid_price","bid_amount"]
[1730718083753,4.04801,2470.4,2470.0,0.6673]
[1730718084054,4.04833,2470.2,2469.7,4.71631]
[1730718084231,4.0485,2470.1,2469.7,4.71631]
[1730718085562,4.04862,2470.0,2469.7,0.6673]
[1730718086726,4.04875,2469.9,2469.5,0.6673]
[1730718086957,4.04898,2469.8,2469.3,4.71691]
[1730718087245,4.04876,2469.9,2469.4,4.9384247]
[1730718087451,0.55,2470.0,2469.6,4.04911]
[1730718087651,4.04834,2470.2,2469.7,0.74827831]
[1730718087950,4.04842,2470.1,2469.7,0.6673]
[1730718088120,4.04842,2470.1,2469.7,4.71634]
[1730718088315,4.04868,2470.0,2469.7,0.6673]
[1730718088557,4.04868,2470.0,2469.6,4.04921]
[1730718088558,8.09739,2470.0,2469.6,4.04921]
[1730718088717,4.82658,2470.0,2469.6,4.04921]
[1730718089239,4.82658,2470.0,2469.4,5.6057147]
[1730718089438,4.04874,2469.9,2469.5,4.60990147]
[1730718089845,0.7779,2470.0,2469.6,4.04922]
[1730718090041,4.04855,2470.1,2469.6,4.04922]
[1730718090357,4.04855,2470.1,2469.6,4.13019469]
[1730718090661,4.04855,2470.1,2469.6,5.15983478]
[1730718090972,4.04855,2470.1,2469.5,4.60990147]
[1730718090973,4.04889,2469.9,2469.5,0.56057147]
[1730718091117,8.09772,2469.9,2469.5,4.60994147]
[1730718091315,4.04931,2469.6,2469.4,0.6673]
[1730718091665,4.04931,2469.6,2469.2,1.17313702]
[1730718091666,4.04973,2469.3,2469.2,1.17313702]
[1730718092753,4.85087,2469.4,2469.2,1.17313702]
[1730718093556,4.04973,2469.3,2469.2,1.17313702]
[1730718094681,4.04973,2469.3,2469.2,0.32238998]
[1730718095455,4.04943,2469.5,2469.2,0.32238998]
[1730718095847,4.04943,2469.5,2469.2,0.98968998]
[1730718096142,0.768,2470.6,2469.6,4.04923]
[1730718096370,0.7915,2470.2,2469.7,0.6673]
[1730718096582,4.04883,2469.9,2469.4,4.71684]
[1730718096783,4.04902,2469.8,2469.4,0.6673]
[1730718097358,4.04908,2469.7,2469.4,0.6673]
[1730718097559,4.04902,2469.8,2469.4,4.71684]
[1730718097875,4.04902,2469.8,2469.4,0.6673]
[1730718098048,4.0491,2469.7,2469.4,0.6673]
[1730718098249,4.0491,2469.7,2469.3,4.04971]
[1730718098550,4.0491,2469.7,2469.3,4.98362195]
[1730718098751,4.04874,2469.9,2469.4,4.04953]
[1730718098978,4.04914,2469.7,2469.2,5.03949998]
[1730718099152,4.04924,2469.6,2469.2,5.03949998]
[1730718099474,4.04924,2469.6,2469.2,5.94846598]
[1730718100463,4.0491,2469.7,2469.2,9.99823598]
[1730718100663,4.0491,2469.7,2469.3,4.04965]
[1730718101595,4.80629,2469.8,2469.3,4.13062627]
[1730718102801,4.04908,2469.7,2469.3,4.13062627]
[1730718103101,4.04908,2469.7,2469.3,4.04964]
[1730718103897,4.61454608,2470.3,2469.4,0.6673]
[1730718104198,4.04882,2469.9,2469.4,4.79775384]
[1730718104501,4.04882,2469.9,2469.4,8.84722384]
[1730718104675,4.04882,2469.9,2469.4,8.76624]
[1730718105202,4.04882,2469.9,2469.5,4.04937]
[1730718105774,8.09712,2470.1,2469.6,4.04913]
[1730718105997,4.04871,2470.0,2469.5,4.926004]
[1730718106693,4.04871,2470.0,2469.5,8.975394]
[1730718106875,4.04871,2470.0,2469.5,4.926004]
[1730718107260,4.04874,2469.9,2469.5,4.926004]
[1730718107469,4.04901,2469.8,2469.4,0.6673]
[1730718107688,4.04907,2469.7,2469.4,0.6673]
[1730718110468,4.04891,2469.8,2469.4,4.71685]
[1730718111172,4.04912,2469.7,2469.4,0.6673]
[1730718113498,4.59892,2469.8,2469.4,4.71684]
[1730718114004,4.04868,2470.0,2469.5,4.04928]
[1730718114169,4.04868,2470.0,2469.5,8.0986]
[1730718114364,4.04868,2470.0,2469.5,4.04928]
[1730718114797,4.04868,2470.0,2469.6,4.71644]
[1730718115174,4.04868,2470.0,2469.6,0.6673]
[1730718116198,4.04875,2469.9,2469.6,0.6673]
[1730718116503,4.04875,2469.9,2469.6,1.2266274]
[1730718116894,4.04861,2470.0,2469.6,5.2758474]
[1730718118309,8.09727,2470.0,2469.6,5.2758474]
[1730718118809,4.04861,2470.0,2469.6,5.2758474]
[1730718119021,4.04894,2469.8,2469.4,0.876654]
[1730718119311,8.09795,2469.8,2469.3,4.79800628]
[1730718120372,4.04932,2469.6,2469.3,0.6673]
[1730718120603,4.04934,2469.6,2469.3,0.6673]
[1730718121212,4.0494,2469.5,2469.2,4.04978]
[1730718122232,4.04963,2469.4,2469.1,0.6673]
[1730718122396,4.04966,2469.4,2469.1,0.6673]
[1730718123786,4.04974,2469.3,2469.1,0.6673]
[1730718124519,4.04962,2469.4,2469.1,0.6673]
[1730718124689,8.09932,2469.4,2469.1,0.6673]
[1730718125091,4.04974,2469.3,2469.1,0.6673]
[1730718125819,0.885996,2469.3,2468.9,0.6673]
[1730718126066,0.885996,2469.3,2468.5,0.32238998]
[1730718126067,4.05049,2468.9,2468.6,0.6673]
[1730718126333,4.05056,2468.8,2468.5,0.32238998]
[1730718126825,4.05022,2469.0,2468.5,0.32238998]
[1730718127122,4.05084,2468.7,2468.5,0.32238998]
[1730718127492,4.05087,2468.6,2468.5,0.32238998]
[1730718127687,4.05074,2468.7,2468.5,0.32238998]
[1730718127990,0.7552,2468.8,2468.5,0.32238998]
[1730718128203,8.10152,2468.7,2468.5,0.32238998]
[1730718128502,4.05072,2468.7,2468.5,0.32238998]
[1730718129031,4.80575,2468.8,2468.5,0.32238998]
[1730718129233,4.81034,2469.0,2468.5,0.32238998]
[1730718129404,4.05024,2469.0,2468.6,4.71816]
[1730718129824,4.05008,2469.1,2468.6,4.71808]
[1730718130205,4.05023,2469.0,2468.6,4.71808]
[1730718130722,0.799,2469.2,2468.7,4.05067]
[1730718130908,8.89887,2469.2,2468.7,0.96095079]
[1730718131111,4.59975,2469.3,2468.8,8.10096]
[1730718131309,4.04973,2469.3,2468.9,4.71757]
[1730718131614,4.04966,2469.4,2468.9,4.71757]
[1730718131615,4.04963,2469.4,2468.9,4.71757]
[1730718132020,8.09932,2469.4,2468.9,4.71757]
[1730718132220,4.04963,2469.4,2468.9,4.71757]
[1730718132424,4.0498,2469.3,2468.9,0.6673]
[1730718132748,4.04963,2469.4,2468.9,0.6673]
[1730718132916,4.04989,2469.2,2468.9,0.6673]
[1730718133844,8.09991,2469.2,2468.9,0.6673]
[1730718134005,4.04989,2469.2,2468.9,0.6673]
[1730718135015,4.05011,2469.1,2468.9,0.6673]
[1730718135200,4.05047,2468.9,2468.6,0.6673]
[1730718135403,4.05079,2468.7,2468.5,0.32238998]
[1730718136010,8.10132,2468.8,2468.5,0.32238998]
[1730718136439,4.05074,2468.7,2468.5,0.32238998]
[1730718137220,8.10156,2468.7,2468.5,0.32238998]
[1730718137543,4.05074,2468.7,2468.5,0.32238998]
[1730718138644,8.10157,2468.7,2468.5,0.32238998]
[1730718139148,4.05087,2468.6,2468.5,0.32238998]
[1730718140748,4.943351,2468.6,2468.5,0.32238998]
[1730718143451,4.05116,2468.5,2468.0,4.05176]
[1730718143676,4.05127,2468.4,2468.0,4.05176]
[1730718143830,4.05127,2468.4,2467.9,0.6673]
[1730718144018,4.05127,2468.4,2467.9,8.77122]
[1730718144331,4.05116,2468.5,2468.0,8.10351]
[1730718144332,4.05113,2468.5,2468.0,8.10351]
[1730718144652,4.05102,2468.6,2468.1,4.05169]
[1730718144948,4.05102,2468.6,2468.2,4.05149]
[1730718145158,0.8232,2468.7,2468.2,4.05149]
[1730718145159,4.87392,2468.7,2468.3,4.05136]
[1730718145367,4.05072,2468.7,2468.4,0.6673]
[1730718146261,4.05089,2468.6,2468.4,0.6673]
[1730718146626,4.05089,2468.6,2468.0,4.928811]
[1730718146627,4.05089,2468.6,2468.1,0.6673]
[1730718146837,8.10192,2468.6,2468.1,4.7189]
[1730718147151,4.05105,2468.5,2468.1,4.7189]
[1730718147528,0.7913,2468.9,2468.1,0.6673]
[1730718147740,4.0509,2468.6,2468.2,4.05153]
[1730718148060,4.05115,2468.5,2468.1,0.6673]
[1730718148597,4.05115,2468.5,2468.2,0.19756225]
[1730718148858,4.05115,2468.5,2468.1,0.6673]
[1730718149050,4.84265,2468.5,2468.2,0.19755564]
[1730718149356,4.05121,2468.4,2468.0,4.0517]
[1730718149562,4.05121,2468.4,2468.1,0.19755566]
[1730718149712,4.05121,2468.4,2468.2,0.19755566]
[1730718149916,4.05121,2468.4,2468.0,4.0517]
[1730718150254,4.05121,2468.4,2468.1,0.19763176]
[1730718150420,4.05121,2468.4,2468.2,0.19763176]
[1730718150623,4.84255,2468.5,2468.0,4.0517]
[1730718150848,4.85263,2468.7,2468.1,4.24925746]
[1730718151152,4.05089,2468.6,2468.3,0.6673]
[1730718151713,4.05089,2468.6,2468.1,4.71889]
[1730718151913,4.05089,2468.6,2468.2,0.19768754]
[1730718152162,4.05089,2468.6,2468.3,0.19768754]
[1730718152319,4.05089,2468.6,2468.1,4.71889]
[1730718152520,4.05089,2468.6,2468.2,0.51411543]
[1730718152720,4.05089,2468.6,2468.3,0.19769485]
[1730718152939,4.05089,2468.6,2468.4,0.19769485]
[1730718153225,4.05089,2468.6,2468.2,4.36792789]
[1730718153451,4.05089,2468.6,2468.3,0.1977632]
[1730718153762,4.05089,2468.6,2468.4,0.1977632]
[1730718153933,4.05089,2468.6,2468.2,4.05151]
[1730718154260,4.05089,2468.6,2468.3,0.19781594]
[1730718154424,4.05089,2468.6,2468.4,0.19781594]
[1730718154623,4.05089,2468.6,2468.5,0.19789004]
[1730718154825,4.05089,2468.6,2468.2,4.05151]
[1730718155163,4.0512,2468.4,2468.3,0.51453889]
[1730718155365,4.8301,2468.4,2468.3,0.19789121]
[1730718155524,4.05137,2468.3,2467.7,4.71956]
[1730718155719,1.3289,2468.4,2467.8,0.91077803]
[1730718155720,4.05171,2468.1,2467.8,0.91077803]
[1730718155960,4.05196,2468.0,2467.9,0.5147663]
[1730718156502,5.38086,2468.0,2467.9,0.19797867]
[1730718158205,5.38086,2468.0,2467.6,4.05251]
[1730718158370,4.60196,2468.0,2467.7,0.19790713]
[1730718158558,4.60196,2468.0,2467.8,0.51457838]
[1730718158761,4.60196,2468.0,2467.9,0.19790713]
[1730718161884,4.05218,2467.9,2467.4,4.72012]
[1730718162213,4.0522,2467.8,2467.5,0.91003451]
[1730718162417,4.05218,2467.9,2467.6,0.91003451]
[1730718162634,4.05218,2467.9,2467.4,4.72012]
[1730718162635,4.05218,2467.9,2467.5,4.05266]
[1730718162781,4.05218,2467.9,2467.6,0.91015971]
[1730718162980,4.05218,2467.9,2467.7,0.51441902]
[1730718162981,8.10428,2467.9,2467.7,0.51441902]
[1730718163182,4.0521,2467.9,2467.8,0.51441902]
[1730718165201,4.0521,2467.9,2467.4,5.04988126]
[1730718165202,4.0522,2467.8,2467.4,4.72006]
[1730718165397,4.0522,2467.8,2467.5,0.91050404]
[1730718165683,4.05219,2467.8,2467.6,0.91050404]
[1730718165909,4.05219,2467.8,2467.7,0.91050404]
[1730718166624,4.05219,2467.8,2467.7,0.91054982]
[1730718166829,4.05219,2467.8,2467.7,0.51461144]
[1730718167038,4.81459,2467.8,2467.7,0.51461144]
[1730718169429,5.756255,2467.8,2467.7,0.51461144]
[1730718169926,6.306255,2467.8,2467.7,0.19791911]
[1730718170290,4.05188,2468.0,2467.7,0.86521911]
[1730718170632,4.60192,2468.0,2467.8,0.51462113]
[1730718170823,4.05202,2467.9,2467.7,0.6673]
[1730718171115,4.05202,2467.9,2467.8,0.51462595]
[1730718171519,4.05202,2467.9,2467.8,0.19792469]
[1730718171724,5.000074,2467.9,2467.8,0.19792469]
[1730718173664,6.379574,2467.9,2467.8,0.19792469]
[1730718173863,4.05231,2467.8,2467.4,0.39589332]
[1730718174047,4.05235,2467.7,2467.5,0.51462959]
[1730718174225,4.05235,2467.7,2467.6,0.51462959]
[1730718174824,4.05235,2467.7,2467.6,0.19792609]
[1730718175224,5.000766,2467.7,2467.6,0.19792609]
[1730718175673,4.05266,2467.6,2467.1,4.72055]
[1730718175970,4.05266,2467.6,2467.2,0.91054261]
[1730718176173,4.05266,2467.6,2467.3,0.51463502]
[1730718176337,4.05266,2467.6,2467.4,0.51463502]
[1730718176544,4.05266,2467.6,2467.5,0.19792818]
[1730718178466,4.60266,2467.6,2467.5,0.19792818]
[1730718178670,5.43246,2467.6,2467.5,0.19792818]
[1730718178887,4.05297,2467.4,2467.1,0.6673]
[1730718179387,4.05272,2467.5,2467.2,0.51466814]
[1730718179684,4.05272,2467.5,2467.3,0.51468868]
[1730718179894,4.05272,2467.5,2467.4,0.19794882]
[1730718181183,4.05272,2467.5,2467.4,0.19795285]
[1730718182574,4.05272,2467.5,2467.1,0.6673]
[1730718182779,4.05296,2467.4,2467.2,0.51484463]
[1730718183082,4.05296,2467.4,2467.3,0.1980088]
[1730718187263,5.001508,2467.4,2467.3,0.1980088]
[1730718188506,5.001508,2467.4,2466.9,4.72089]
[1730718188507,4.05312,2467.3,2466.9,4.72089]
[1730718188669,4.05312,2467.3,2467.0,0.71333559]
[1730718189002,4.05312,2467.3,2467.1,0.51514814]
[1730718189173,4.05312,2467.3,2467.2,0.51514814]
[1730718189374,4.05276,2467.5,2467.2,0.51514814]
[1730718189616,4.05276,2467.5,2467.3,0.51511437]
[1730718189898,4.68702181,2467.8,2467.4,0.19810619]
[1730718190105,4.68702181,2467.8,2467.2,4.72038]
[1730718190106,4.05243,2467.7,2467.5,0.19810881]
[1730718190290,5.23470399,2467.8,2467.4,4.05282]
[1730718190495,8.10453,2467.8,2467.5,0.19811847]
[1730718190704,8.10453,2467.8,2467.3,4.05299]
[1730718190705,4.05222,2467.8,2467.6,0.19811847]
[1730718191006,4.05235,2467.7,2467.3,4.05299]
[1730718191167,4.05235,2467.7,2467.4,0.5151307]
[1730718191503,4.05235,2467.7,2467.5,0.51516356]
[1730718191799,4.05235,2467.7,2467.6,0.19811882]
[1730718192006,4.05235,2467.7,2467.6,0.19813954]
[1730718192305,4.05222,2467.8,2467.2,0.6673]
[1730718192509,4.05273,2467.5,2467.3,0.51522622]
[1730718192694,4.05273,2467.5,2467.4,0.51522622]
[1730718192873,4.05273,2467.5,2467.4,0.51523943]
[1730718193709,4.05255,2467.6,2467.4,0.51523943]
[1730718193959,4.05255,2467.6,2467.5,0.19815963]
[1730718194255,4.05235,2467.7,2467.5,0.19815963]
[1730718194457,4.05235,2467.7,2467.6,0.19815963]
[1730718195148,4.05235,2467.7,2467.3,4.05297]
[1730718195467,4.05252,2467.6,2467.4,0.51533695]
[1730718195762,4.05235,2467.7,2467.5,0.51533695]
[1730718195918,4.05235,2467.7,2467.6,0.19819593]
[1730718197444,4.05235,2467.7,2467.6,0.51546073]
[1730718198047,4.05235,2467.7,2467.6,0.19819593]
[1730718198270,4.05226,2467.8,2467.6,0.19819593]
[1730718198563,4.05226,2467.8,2467.7,0.19819593]
[1730718198876,4.05236,2467.7,2467.3,4.05294]
[1730718199035,4.05236,2467.7,2467.4,0.91223538]
[1730718199240,4.05236,2467.7,2467.5,0.51558741]
[1730718199505,4.05236,2467.7,2467.6,0.51558741]
[1730718199807,5.42886,2467.7,2467.6,0.19829447]
[1730718200030,6.376972,2467.7,2467.6,0.19829447]
[1730718200363,0.55,2467.6,2467.0,0.6673]
[1730718200566,8.10614,2467.3,2467.1,0.91241175]
[1730718200770,8.10614,2467.3,2467.2,0.51568967]
[1730718201080,4.05301,2467.3,2467.2,0.51568967]
[1730718201599,4.86711,2467.3,2467.2,0.1983338]
[1730718201900,4.86711,2467.3,2467.2,0.51577928]
[1730718202105,4.86711,2467.3,2466.8,0.6673]
[1730718202106,4.05323,2467.2,2466.8,4.72112]
[1730718202302,4.05323,2467.2,2466.9,0.91261534]
[1730718202512,4.05323,2467.2,2467.0,0.91261212]
[1730718202666,4.05323,2467.2,2467.1,0.51581122]
[1730718203426,4.945264,2467.2,2467.1,0.51581122]
[1730718204313,5.495264,2467.2,2467.1,0.19836855]
[1730718204465,6.251064,2467.2,2467.1,0.19836855]
[1730718204870,6.251064,2467.2,2466.7,0.060581]
[1730718204871,4.05383,2466.8,2466.7,0.060581]
[1730718205163,4.05383,2466.8,2466.7,0.2589328]
[1730718205164,6.204783,2466.8,2466.7,0.2589328]
[1730718205415,6.204783,2466.8,2466.7,0.060581]
[1730718205416,6.180283,2466.8,2466.7,0.060581]
[1730718205775,6.180283,2466.8,2465.6,1.18147706]
[1730718205776,4.05449,2466.4,2465.6,1.18147706]
[1730718205971,4.05449,2466.4,2465.7,0.51539648]
[1730718205972,4.82117,2465.8,2465.7,0.51539648]
[1730718206282,4.0558,2465.6,2465.5,0.060581]
[1730718206629,4.0558,2465.6,2465.5,0.25841785]
[1730718206908,4.82118,2465.8,2465.5,0.25841785]
[1730718207122,4.05566,2465.7,2465.6,0.14783685]
[1730718207288,4.0558,2465.6,2465.5,0.060581]
[1730718208178,4.60566,2465.7,2465.5,0.05949879]
[1730718208385,8.6614,2465.7,2465.5,0.05949879]
[1730718208716,4.05566,2465.7,2465.5,0.05949879]
[1730718209091,4.05541,2465.9,2465.5,0.72679879]
[1730718209382,0.55,2466.0,2465.5,0.72679879]
[1730718209477,4.05499,2466.1,2465.6,4.05572]
[1730718209684,4.05506,2466.1,2465.6,4.0558]
[1730718209910,4.05517,2466.0,2465.5,5.26101367]
[1730718210115,4.87342,2465.9,2465.5,4.59371367]
[1730718210474,4.87342,2465.9,2465.5,4.11542879]
[1730718210703,4.05517,2466.0,2465.5,4.11542879]
[1730718211201,4.05517,2466.0,2465.6,0.6673]
[1730718211608,4.05506,2466.1,2465.6,4.72302]
[1730718211875,8.65954,2466.3,2465.8,4.0554]
[1730718212418,8.65954,2466.3,2465.7,4.0556]
[1730718212419,4.60475,2466.3,2465.7,4.0556]
[1730718212691,4.05506,2466.1,2465.7,4.0556]
[1730718212916,4.05483,2466.2,2465.7,4.05554]
[1730718213114,4.05483,2466.2,2465.6,5.54816723]
[1730718213115,4.05507,2466.1,2465.6,5.54816723]
[1730718214008,4.0549,2466.2,2465.7,4.05562]
[1730718214322,4.05499,2466.1,2465.7,4.05562]
[1730718214535,4.0549,2466.2,2465.7,4.05555]
[1730718214718,4.0549,2466.2,2465.7,8.11111]
[1730718215017,4.0549,2466.2,2465.8,4.05545]
[1730718215900,4.05439,2466.5,2466.0,4.05504]
[1730718216137,4.0543,2466.6,2466.1,4.05482]
[1730718216295,4.0543,2466.6,2466.2,0.6673]
[1730718216560,4.0543,2466.6,2466.2,4.72202]
[1730718216734,4.054,2466.7,2466.3,4.05465]
[1730718217033,4.05426,2466.6,2466.2,0.6673]
[1730718217826,4.05407,2466.7,2466.2,4.72202]
[1730718217985,4.05424,2466.6,2466.2,0.6673]
[1730718218386,4.05437,2466.5,2466.1,4.05489]
[1730718218935,4.05473,2466.3,2466.0,0.6673]
[1730718219234,0.7646,2466.5,2465.8,0.98240376]
[1730718219526,4.05497,2466.2,2465.9,0.19693287]
[1730718219696,4.05497,2466.2,2465.8,0.6673]
[1730718220025,4.05497,2466.2,2465.8,4.72275]
[1730718220429,4.05497,2466.2,2465.9,0.19696807]
[1730718220630,4.05497,2466.2,2465.8,4.72275]
[1730718220787,4.05497,2466.2,2465.9,0.19697165]
[1730718220988,4.05506,2466.1,2465.8,0.6673]
[1730718221233,4.05472,2466.3,2465.9,4.25220804]
[1730718221399,8.10949,2466.3,2465.8,5.03797033]
[1730718221727,4.05482,2466.2,2465.9,0.19700151]
[1730718221937,4.05482,2466.2,2465.8,5.03797033]
[1730718222222,4.05472,2466.3,2465.9,0.19700253]
[1730718222537,4.05472,2466.3,2465.8,8.77812]
[1730718222538,4.05472,2466.3,2466.0,0.1970295]
[1730718222685,4.05472,2466.3,2465.9,4.05524]
[1730718222990,4.05472,2466.3,2466.0,0.19702531]
[1730718223185,4.05449,2466.4,2466.0,4.05512]
[1730718223588,4.0545,2466.4,2465.9,4.05522]
[1730718223913,4.05416,2466.6,2466.2,0.6673]
[1730718224071,4.05444,2466.5,2466.2,0.6673]
[1730718224269,4.0545,2466.4,2466.2,0.6673]
[1730718224868,4.05444,2466.5,2466.2,0.6673]
[1730718225909,4.05452,2466.4,2466.2,0.6673]
[1730718226983,4.05444,2466.5,2466.0,0.6673]
[1730718227185,4.05466,2466.3,2466.1,0.19722042]
[1730718227412,0.405444,2466.5,2466.0,0.6673]
[1730718227413,4.05451,2466.4,2466.2,0.19722042]
[1730718227566,4.05451,2466.4,2466.0,0.6673]
[1730718227911,8.1091,2466.4,2466.1,0.1973017]
[1730718228206,4.05451,2466.4,2466.2,0.1973017]
[1730718228407,4.05451,2466.4,2466.0,0.6673]
[1730718228610,4.05451,2466.4,2466.1,0.51326105]
[1730718228805,4.865391,2466.4,2466.2,0.19739974]
[1730718229108,4.05469,2466.3,2466.0,0.6673]
[1730718229302,4.865391,2466.4,2466.1,0.51354534]
[1730718229508,4.865391,2466.4,2466.2,0.19750908]
[1730718229806,4.865391,2466.4,2466.3,0.19750908]
[1730718230773,5.671291,2466.4,2466.3,0.19750908]
[1730718231583,6.221291,2466.4,2466.3,0.19750908]
[1730718231813,4.05489,2466.2,2465.9,0.39552411]
[1730718232017,4.05489,2466.2,2466.0,0.51413996]
[1730718232220,5.0825241,2466.2,2466.1,0.19773777]
[1730718232520,5.0825241,2466.2,2466.1,0.51429267]
[1730718232721,5.0825241,2466.2,2466.1,0.51438805]
[1730718234821,5.0825241,2466.2,2466.1,0.51489136]
[1730718236085,1.0276341,2466.2,2466.1,0.51489136]
[1730718236392,4.05456,2466.4,2466.1,0.51489136]
[1730718236593,4.05467,2466.3,2466.2,0.19802676]
[1730718237427,4.05467,2466.3,2466.2,0.51510285]
[1730718237592,4.05467,2466.3,2466.2,0.19802676]
[1730718238313,4.05467,2466.3,2466.2,0.51522997]
[1730718239732,4.05467,2466.3,2466.2,0.51562519]
[1730718242428,4.05495,2466.2,2465.8,0.6673]
[1730718242792,4.05495,2466.2,2465.9,0.33072095]
[1730718243128,4.05499,2466.1,2465.9,0.52910657]
[1730718243331,4.05495,2466.2,2465.9,0.52910657]
[1730718243491,4.05495,2466.2,2465.9,0.84654539]
[1730718244117,4.05458,2466.4,2466.0,4.05507]
[1730718244433,4.8651,2466.6,2466.1,4.72215]
[1730718244434,4.0543,2466.6,2466.1,4.72215]
[1730718244595,4.0544,2466.5,2466.1,4.72215]
[1730718245933,4.0544,2466.5,2466.1,8.77702]
[1730718246231,4.05439,2466.5,2466.1,6.08018496]
[1730718246898,4.05456,2466.4,2466.1,0.6673]
[1730718248427,0.8299,2466.8,2466.1,0.6673]
[1730718248634,8.1092,2466.4,2466.1,0.6673]
[1730718248836,4.05459,2466.4,2466.1,0.6673]
[1730718249129,4.05451,2466.4,2466.1,0.6673]
[1730718249334,4.05407,2466.7,2466.2,4.05467]
[1730718249636,4.05394,2466.8,2466.3,4.05458]
[1730718249818,4.05402,2466.7,2466.4,0.6673]
[1730718250251,4.05394,2466.8,2466.4,0.6673]
[1730718250760,4.054,2466.7,2466.4,0.6673]
[1730718251267,4.05373,2466.9,2466.5,4.05431]
[1730718251861,0.892034,2467.2,2466.7,0.6673]
[1730718251862,4.05348,2467.1,2466.7,0.6673]
[1730718252023,4.05335,2467.1,2466.7,4.72122]
[1730718252219,4.05315,2467.3,2466.7,4.72122]
[1730718252461,4.05315,2467.3,2466.8,4.05367]
[1730718252760,4.05275,2467.5,2467.1,4.05329]
[1730718252965,4.05275,2467.5,2467.2,0.51506885]
[1730718253127,4.05275,2467.5,2467.3,0.51506885]
[1730718253128,4.05296,2467.4,2467.3,0.51506885]
[1730718253331,4.05305,2467.3,2467.0,0.39617114]
[1730718253638,4.05305,2467.3,2467.1,0.51497804]
[1730718253882,4.05305,2467.3,2467.2,0.51497804]
[1730718254221,4.05305,2467.3,2467.2,0.1980601]
[1730718254418,4.05261,2467.6,2467.2,0.1980601]
[1730718254658,4.0527,2467.5,2467.3,0.1980601]
[1730718254959,4.0527,2467.5,2467.1,4.05325]
[1730718255164,4.0527,2467.5,2467.2,0.19768202]
[1730718255328,4.0527,2467.5,2467.3,0.19768202]
[1730718255528,4.0527,2467.5,2467.1,4.930849]
[1730718255733,4.0527,2467.5,2467.2,0.19754108]
[1730718255962,4.0527,2467.5,2467.3,0.19754108]
[1730718256161,4.05241,2467.7,2467.3,0.6673]
[1730718256326,4.05241,2467.7,2467.3,1.61126651]
[1730718257359,4.05254,2467.6,2467.3,1.61126651]
[1730718258137,4.05228,2467.8,2467.4,4.05283]
[1730718258337,0.828,2468.0,2467.5,4.71989]
[1730718258338,4.05199,2468.0,2467.5,4.71989]
[1730718259255,4.05204,2467.9,2467.5,4.71989]
[1730718259431,4.05204,2467.9,2467.5,6.07564426]
[1730718259935,4.05171,2468.1,2467.7,0.6673]
[1730718260431,4.05165,2468.2,2467.7,4.71956]
[1730718260773,4.05165,2468.2,2467.8,4.05218]
[1730718261132,4.05165,2468.2,2467.7,4.71955]
[1730718261472,4.05182,2468.1,2467.7,1.68008843]
[1730718261668,0.55,2468.4,2467.7,5.73241843]
[1730718261827,4.05153,2468.3,2467.8,4.05218]
[1730718262040,8.10306,2468.3,2467.8,4.0521]
[1730718262379,4.05156,2468.2,2467.8,4.0521]
[1730718262572,4.05156,2468.2,2467.8,5.41464245]
[1730718263334,4.05146,2468.3,2467.8,5.41473245]
[1730718263667,4.05146,2468.3,2467.9,4.052]
[1730718263831,8.10259,2468.4,2468.0,0.6673]
[1730718264276,4.05129,2468.4,2468.0,0.6673]
[1730718264473,4.05128,2468.4,2468.0,4.71913]
[1730718264829,4.05104,2468.5,2468.0,1.68066725]
[1730718265033,4.05104,2468.5,2468.0,4.71904]
[1730718265469,4.05102,2468.6,2468.1,4.05168]
[1730718265470,8.10202,2468.6,2468.1,4.05168]
[1730718265686,4.051,2468.6,2468.1,4.05168]
[1730718265879,0.8313,2468.7,2468.0,4.50814608]
[1730718266180,0.8313,2468.7,2468.0,8.55997608]
[1730718266181,4.05123,2468.4,2468.0,8.55997608]
[1730718266688,4.05139,2468.3,2468.0,0.6673]
[1730718267241,4.05139,2468.3,2468.1,0.19697382]
[1730718267475,4.05139,2468.3,2468.0,0.6673]
[1730718267655,4.05123,2468.4,2468.1,0.19696429]
[1730718267841,8.10256,2468.4,2468.0,0.6673]
[1730718268038,4.05123,2468.4,2468.1,0.19696364]
[1730718268266,4.05139,2468.3,2468.2,0.1971265]
[1730718268584,4.05139,2468.3,2468.0,0.6673]
[1730718268739,4.05139,2468.3,2468.1,0.19712978]
[1730718268950,4.05139,2468.3,2468.0,0.6673]
[1730718269257,4.05139,2468.3,2468.1,0.51291573]
[1730718269458,4.05139,2468.3,2468.2,0.19712888]
[1730718271354,4.05139,2468.3,2468.2,0.51292509]
[1730718272383,4.05122,2468.4,2468.2,0.19712888]
[1730718272692,4.05122,2468.4,2468.3,0.19712888]
[1730718273480,0.8313,2468.7,2468.3,0.19712888]
[1730718273481,4.051,2468.6,2468.3,0.19712888]
[1730718273691,8.10128,2468.8,2468.4,5.23143289]
[1730718273873,4.05064,2468.8,2468.5,0.19712888]
[1730718274077,4.41381307,2469.0,2468.6,4.0508]
[1730718274288,4.41381307,2469.0,2468.7,0.19737875]
[1730718274521,4.41381307,2469.0,2468.6,4.36660542]
[1730718274802,4.05034,2469.0,2468.7,1.18039717]
[1730718274957,4.05041,2468.9,2468.8,0.19732312]
[1730718275457,4.05055,2468.8,2468.6,0.31580542]
[1730718275658,0.810073,2468.9,2468.7,0.19728528]
[1730718275893,4.05048,2468.9,2468.6,0.98310542]
[1730718276196,0.8105,2469.1,2468.6,0.98310542]
[1730718276438,8.10067,2469.0,2468.7,0.19725398]
[1730718276553,8.10065,2469.0,2468.6,0.98310542]
[1730718276758,4.05029,2469.0,2468.7,0.19726163]
[1730718276993,4.05045,2468.9,2468.6,0.98310542]
[1730718277181,4.05045,2468.9,2468.7,0.19726337]
[1730718277381,8.10097,2468.9,2468.6,0.98310542]
[1730718277568,0.8105,2469.1,2468.6,0.98310542]
[1730718277772,4.05047,2468.9,2468.7,0.19724774]
[1730718277973,4.05047,2468.9,2468.6,0.98310542]
[1730718278168,4.05055,2468.8,2468.7,0.19724821]